[Event "ONJK U25"]
[Site "Enschede, Netherlands"]
[Date "2022.08.11"]
[Round "5.1"]
[White "Baselmans, Luuk"]
[Black "Van Roon, Sjoerd"]
[Result "1-0"]
[TimeControl "90min + 30sec/move"]
[WhiteElo "2256"]
[BlackElo "2310"]

1. e4 {[%clk 01:30:57]} {[%emt 00:00:02]} c5 {[%clk 01:30:57]} {[%emt
00:00:03]} 2. Nf3 {[%clk 01:31:20]} {[%emt 00:00:07]} e6 {[%clk 01:31:24]}
{[%emt 00:00:03]} 3. b3 {[%clk 01:31:45]} {[%emt 00:00:05]} b6 {[%clk
01:31:30]} {[%emt 00:00:24]} 4. Bb2 {[%clk 01:31:57]} {[%emt 00:00:18]} Bb7
{[%clk 01:31:54]} {[%emt 00:00:06]} 5. Nc3 {[%clk 01:32:20]} {[%emt 00:00:07]}
Nf6 {[%clk 01:30:07]} {[%emt 00:02:17]} 6. e5 {[%clk 01:30:12]} {[%emt
00:02:38]} Ne4 {[%clk 01:29:46]} {[%emt 00:00:50]} 7. h4 {[%clk 01:24:33]}
{[%emt 00:06:09]} Nxc3 {[%clk 01:26:47]} {[%emt 00:03:30]} 8. dxc3 {[%clk
01:23:45]} {[%emt 00:01:18]} Qc7 {[%clk 01:13:56]} {[%emt 00:13:21]} 9. c4
{[%clk 01:22:57]} {[%emt 00:01:17]} Nc6 {[%clk 01:14:03]} {[%emt 00:00:23]} 10.
Bd3 {[%clk 01:15:32]} {[%emt 00:07:55]} O-O-O {[%clk 01:12:30]} {[%emt
00:02:03]} 11. Qe2 {[%clk 01:15:43]} {[%emt 00:00:19]} d6 {[%clk 01:07:04]}
{[%emt 00:05:57]} 12. exd6 {[%clk 01:15:44]} {[%emt 00:00:28]} Rxd6 {[%clk
01:07:23]} {[%emt 00:00:11]} 13. O-O-O {[%clk 01:15:31]} {[%emt 00:00:42]} f6
{[%clk 01:05:49]} {[%emt 00:02:05]} 14. Kb1 {[%clk 01:14:57]} {[%emt 00:01:05]}
e5 {[%clk 00:56:13]} {[%emt 00:10:06]} 15. h5 {[%clk 01:13:59]} {[%emt
00:01:27]} Qf7 {[%clk 00:44:15]} {[%emt 00:12:28]} 16. Nh4 {[%clk 01:09:21]}
{[%emt 00:05:08]} Kc7 {[%clk 00:41:51]} {[%emt 00:02:54]} 17. Be4 {[%clk
01:07:00]} {[%emt 00:02:52]} Nd4 {[%clk 00:37:02]} {[%emt 00:05:19]} 18. Bxd4
{[%clk 01:07:14]} {[%emt 00:00:15]} cxd4 {[%clk 00:36:02]} {[%emt 00:01:30]} 19.
f4 {[%clk 01:04:31]} {[%emt 00:03:13]} exf4 {[%clk 00:31:37]} {[%emt 00:04:55]}
20. Bxb7 {[%clk 01:04:34]} Kxb7 {[%clk 00:32:03]} {[%emt 00:00:32]} 21. Qe4+
{[%clk 01:04:55]} {[%emt 00:00:08]} Ka6 {[%clk 00:31:45]} {[%emt 00:00:49]} 22.
Nf5 {[%clk 01:00:45]} {[%emt 00:04:39]} Re6 {[%clk 00:30:03]} {[%emt 00:02:13]}
23. Qd5 {[%clk 01:00:39]} {[%emt 00:00:36]} Qe8 {[%clk 00:30:18]} {[%emt
00:00:15]} 24. Qb5+ {[%clk 00:56:58]} {[%emt 00:04:11]} Qxb5 {[%clk 00:28:15]}
{[%emt 00:02:34]} 25. cxb5+ {[%clk 00:57:14]} {[%emt 00:00:13]} Kb7 {[%clk
00:28:43]} {[%emt 00:00:02]} 26. Rxd4 {[%clk 00:56:27]} {[%emt 00:01:17]} Re5
{[%clk 00:25:52]} {[%emt 00:03:20]} 27. Rd7+ {[%clk 00:56:07]} {[%emt
00:00:50]} Kc8 {[%emt 00:06:08]} 28. Rhd1 {[%clk 00:56:31]} Re1 {[%clk
00:19:59]} {[%emt 00:00:52]} 29. Rd8+ {[%clk 00:53:40]} {[%emt 00:03:21]} Kc7
{[%clk 00:20:25]} {[%emt 00:00:04]} 30. Rxe1 {[%clk 00:53:46]} {[%emt
00:00:23]} Kxd8 {[%clk 00:20:50]} {[%emt 00:00:05]} 31. Nd4 {[%clk 00:54:10]}
{[%emt 00:00:06]} Kd7 {[%clk 00:13:41]} {[%emt 00:07:40]} 32. Rd1 {[%clk
00:50:04]} {[%emt 00:04:36]} g5 {[%clk 00:14:04]} {[%emt 00:00:07]} 33. hxg6
{[%clk 00:49:51]} {[%emt 00:00:42]} hxg6 {[%clk 00:14:26]} {[%emt 00:00:08]} 34.
Ne2+ {[%clk 00:50:14]} {[%emt 00:00:07]} Bd6 {[%clk 00:12:51]} {[%emt
00:02:06]} 35. Nxf4 {[%clk 00:50:34]} {[%emt 00:00:10]} g5 {[%clk 00:13:02]}
{[%emt 00:00:19]} 36. Nd5 {[%clk 00:50:31]} {[%emt 00:00:33]} f5 {[%clk
00:11:21]} {[%emt 00:02:12]} 37. c4 {[%clk 00:47:12]} {[%emt 00:03:48]} Rh2
{[%clk 00:09:20]} {[%emt 00:02:31]} 38. b4 {[%clk 00:46:25]} {[%emt 00:01:17]}
f4 {[%clk 00:07:26]} {[%emt 00:02:25]} 39. c5 {[%clk 00:35:59]} {[%emt
00:10:55]} bxc5 {[%clk 00:07:18]} {[%emt 00:00:38]} 40. Nf6+ {[%clk 00:33:35]}
{[%emt 00:02:54]} Ke6 {[%clk 00:03:22]} {[%emt 00:04:27]} 41. Ne4 {[%clk
00:33:59]} {[%emt 00:00:05]} cxb4 {[%clk 00:03:47]} {[%emt 00:00:05]} 42. Nxd6
{[%clk 00:26:40]} {[%emt 00:07:48]} Rxg2 {[%clk 00:04:11]} {[%emt 00:00:07]} 43.
Nc4 {[%clk 00:26:49]} {[%emt 00:00:21]} Re2 {[%clk 00:03:18]} {[%emt 00:01:22]}
44. Nd2 {[%clk 00:23:20]} {[%emt 00:04:00]} g4 {[%clk 00:03:02]} {[%emt
00:00:46]} 45. Kc2 {[%clk 00:23:44]} {[%emt 00:00:07]} Ke5 {[%clk 00:02:26]}
{[%emt 00:01:06]} 46. Rg1 {[%clk 00:21:39]} {[%emt 00:02:35]} f3 {[%clk
00:02:36]} {[%emt 00:00:20]} 47. Kd3 {[%clk 00:20:24]} {[%emt 00:01:45]} Kf4
{[%clk 00:02:56]} {[%emt 00:00:10]} 48. Rb1 {[%clk 00:14:24]} {[%emt 00:06:30]}
Re3+ {[%clk 00:02:57]} {[%emt 00:00:29]} 49. Kc2 {[%clk 00:14:49]} {[%emt
00:00:05]} f2 {[%clk 00:02:14]} {[%emt 00:01:13]} 50. Rxb4+ {[%clk 00:14:42]}
{[%emt 00:00:36]} Kg3 {[%clk 00:02:40]} {[%emt 00:00:04]} 51. Nf1+ {[%clk
00:14:35]} {[%emt 00:00:38]} Kf3 {[%clk 00:03:06]} {[%emt 00:00:05]} 52. Rxg4
{[%clk 00:14:05]} {[%emt 00:00:59]} Re5 {[%clk 00:01:50]} {[%emt 00:01:46]} 53.
Nh2+ {[%clk 00:11:07]} {[%emt 00:03:28]} Ke2 {[%clk 00:02:00]} {[%emt
00:00:19]} 54. Rc4 {[%clk 00:11:30]} {[%emt 00:00:08]} Re7 {[%clk 00:00:42]}
{[%emt 00:01:48]} 55. a4 {[%clk 00:11:53]} {[%emt 00:00:08]} Ke1 {[%clk
00:00:44]} {[%emt 00:00:28]} 56. a5 {[%clk 00:11:12]} {[%emt 00:01:11]} Re2+
{[%clk 00:00:54]} {[%emt 00:00:20]} 57. Kc1 {[%clk 00:11:33]} {[%emt 00:00:09]}
Re5 {[%clk 00:00:57]} {[%emt 00:00:27]} 58. b6 {[%clk 00:11:12]} {[%emt
00:00:51]} axb6 {[%clk 00:01:22]} {[%emt 00:00:06]} 59. axb6 {[%clk 00:11:36]}
{[%emt 00:00:05]} f1=Q {[%clk 00:00:38]} {[%emt 00:01:14]} 60. Nxf1 {[%clk
00:12:00]} {[%emt 00:00:07]} Rb5 {[%clk 00:00:54]} {[%emt 00:00:13]} 61. Rc6
{[%clk 00:12:10]} {[%emt 00:00:19]} Kxf1 {[%clk 00:01:22]} {[%emt 00:00:02]} 62.
Kd2 {[%clk 00:12:28]} {[%emt 00:00:12]} Kf2 {[%clk 00:01:29]} {[%emt 00:00:24]}
63. Kd3 {[%clk 00:12:39]} {[%emt 00:00:18]} Kf3 {[%clk 00:01:55]} {[%emt
00:00:05]} 64. Rf6 {[%clk 00:12:55]} {[%emt 00:00:14]} Kg4 {[%clk 00:02:20]}
{[%emt 00:00:05]} 65. Kc4 {[%clk 00:13:20]} {[%emt 00:00:05]} 1-0

[Event "ONJK U25"]
[Site "Enschede, Netherlands"]
[Date "2022.08.11"]
[Round "5.2"]
[White "Nijdam, Brian"]
[Black "Boudry, William"]
[Result "1/2-1/2"]
[TimeControl "90min + 30sec/move"]
[WhiteElo "1749"]
[BlackElo "2115"]

1. d4 {[%clk 01:30:46]} {[%emt 00:00:12]} d5 {[%clk 01:30:41]} {[%emt
00:00:19]} 2. Nc3 {[%clk 01:31:11]} {[%emt 00:00:06]} Nf6 {[%clk 01:30:24]}
{[%emt 00:00:47]} 3. Bf4 {[%clk 01:31:35]} {[%emt 00:00:06]} c5 {[%clk
01:30:38]} {[%emt 00:00:16]} 4. e3 {[%clk 01:31:57]} {[%emt 00:00:08]} cxd4
{[%clk 01:31:03]} {[%emt 00:00:05]} 5. exd4 {[%clk 01:32:22]} {[%emt 00:00:05]}
a6 {[%clk 01:31:30]} {[%emt 00:00:03]} 6. Nf3 {[%clk 01:32:40]} {[%emt
00:00:11]} Nc6 {[%clk 01:31:56]} {[%emt 00:00:05]} 7. Ne5 {[%clk 01:33:01]}
{[%emt 00:00:09]} e6 {[%clk 01:32:16]} {[%emt 00:00:11]} 8. Nxc6 {[%clk
01:33:06]} {[%emt 00:00:24]} bxc6 {[%clk 01:32:40]} {[%emt 00:00:06]} 9. Na4
{[%clk 01:33:30]} {[%emt 00:00:06]} Bd6 {[%clk 01:31:27]} {[%emt 00:01:43]} 10.
Bxd6 {[%clk 01:33:21]} {[%emt 00:00:39]} Qxd6 {[%clk 01:31:52]} {[%emt
00:00:05]} 11. Bd3 {[%clk 01:33:42]} {[%emt 00:00:10]} a5 {[%clk 01:30:00]}
{[%emt 00:02:22]} 12. O-O {[%clk 01:33:52]} {[%emt 00:00:19]} Ba6 {[%clk
01:29:47]} {[%emt 00:00:43]} 13. Bxa6 {[%clk 01:34:11]} {[%emt 00:00:12]} Rxa6
{[%clk 01:30:12]} {[%emt 00:00:05]} 14. Qd3 {[%clk 01:34:04]} {[%emt 00:00:36]}
Ra7 {[%clk 01:29:52]} {[%emt 00:00:50]} 15. Rfe1 {[%clk 01:32:12]} {[%emt
00:02:17]} O-O {[%clk 01:29:01]} {[%emt 00:01:26]} 16. Nc5 {[%clk 01:31:29]}
{[%emt 00:01:13]} Rb8 {[%clk 01:25:52]} {[%emt 00:03:38]} 17. b3 {[%clk
01:31:05]} {[%emt 00:00:55]} Rb5 {[%clk 01:25:10]} {[%emt 00:01:10]} 18. Qg3
{[%clk 01:24:22]} {[%emt 00:07:14]} Qxg3 {[%clk 01:18:56]} {[%emt 00:06:45]} 19.
hxg3 {[%clk 01:24:46]} {[%emt 00:00:05]} Nd7 {[%clk 01:19:07]} {[%emt
00:00:18]} 20. Nxd7 {[%clk 01:24:38]} {[%emt 00:00:39]} Rxd7 {[%clk 01:19:29]}
{[%emt 00:00:08]} 21. Re3 {[%clk 01:20:02]} {[%emt 00:05:05]} h5 {[%clk
01:17:31]} {[%emt 00:02:29]} 22. Rc3 {[%clk 01:13:49]} {[%emt 00:06:42]} c5
{[%clk 01:13:23]} {[%emt 00:04:40]} 23. a4 {[%clk 01:13:32]} {[%emt 00:00:47]}
Rb4 {[%clk 01:13:39]} {[%emt 00:00:13]} 24. Rxc5 {[%clk 01:13:02]} {[%emt
00:00:59]} Rxd4 {[%clk 01:14:06]} {[%emt 00:00:04]} 25. Rxa5 {[%clk 01:12:28]}
{[%emt 00:01:04]} Rc7 {[%clk 01:14:32]} {[%emt 00:00:04]} 26. Rc1 {[%clk
00:58:19]} {[%emt 00:14:38]} Rd2 {[%clk 01:14:49]} {[%emt 00:00:13]} 27. c4
{[%clk 00:57:50]} {[%emt 00:01:00]} d4 {[%clk 01:14:53]} {[%emt 00:00:26]} 28.
Kf1 {[%clk 00:57:12]} {[%emt 00:01:08]} d3 {[%clk 01:15:19]} {[%emt 00:00:04]}
29. Ra8+ {[%clk 00:56:44]} {[%emt 00:00:58]} Kh7 {[%clk 01:15:45]} {[%emt
00:00:04]} 30. Rd8 {[%clk 00:56:50]} {[%emt 00:00:22]} Rb7 {[%clk 01:15:57]}
{[%emt 00:00:19]} 31. Ke1 {[%clk 00:56:09]} {[%emt 00:01:11]} Re2+ {[%clk
01:16:17]} {[%emt 00:00:11]} 32. Kf1 {[%clk 00:54:49]} {[%emt 00:01:49]} Rd2
{[%clk 01:14:44]} {[%emt 00:02:04]} 33. Ke1 {[%clk 00:55:03]} {[%emt 00:00:16]}
Re2+ {[%clk 01:15:06]} {[%emt 00:00:08]} 34. Kf1 {[%clk 00:54:40]} {[%emt
00:00:53]} Rd2 {[%clk 01:08:56]} {[%emt 00:06:40]} 1/2-1/2

[Event "ONJK U25"]
[Site "Enschede, Netherlands"]
[Date "2022.08.11"]
[Round "5.3"]
[White "Merkon, Oseb"]
[Black "Heskes, Johan"]
[Result "1-0"]
[TimeControl "90min + 30sec/move"]
[WhiteElo "1954"]
[BlackElo "1566"]

1. c4 {[%clk 01:30:58]} {[%emt 00:00:01]} e5 {[%clk 01:30:54]} {[%emt
00:00:05]} 2. Nc3 {[%clk 01:31:27]} {[%emt 00:00:01]} f5 {[%clk 01:31:17]}
{[%emt 00:00:07]} 3. g3 {[%clk 01:31:52]} {[%emt 00:00:06]} Nf6 {[%clk
01:31:42]} {[%emt 00:00:05]} 4. Bg2 {[%clk 01:32:19]} {[%emt 00:00:03]} Bc5
{[%clk 01:31:49]} {[%emt 00:00:22]} 5. e3 {[%clk 01:32:07]} {[%emt 00:00:42]}
e4 {[%clk 01:30:53]} {[%emt 00:01:27]} 6. d4 {[%clk 01:28:50]} {[%emt
00:03:46]} exd3 {[%clk 01:31:15]} {[%emt 00:00:08]} 7. Qxd3 {[%clk 01:29:06]}
{[%emt 00:00:14]} d6 {[%clk 01:30:19]} {[%emt 00:01:27]} 8. Nge2 {[%clk
01:28:15]} {[%emt 00:01:19]} Nc6 {[%clk 01:29:37]} {[%emt 00:01:14]} 9. Nd4
{[%clk 01:24:04]} {[%emt 00:04:41]} Ne5 {[%clk 01:29:01]} {[%emt 00:01:05]} 10.
Qc2 {[%clk 01:15:13]} {[%emt 00:09:21]} O-O {[%clk 01:27:22]} {[%emt 00:02:09]}
11. b3 {[%clk 01:12:49]} {[%emt 00:02:54]} c6 {[%clk 01:26:08]} {[%emt
00:01:44]} 12. Bb2 {[%clk 01:09:22]} {[%emt 00:03:57]} f4 {[%clk 01:22:40]}
{[%emt 00:03:58]} 13. gxf4 {[%clk 01:06:24]} {[%emt 00:03:28]} Bxd4 {[%clk
01:23:00]} {[%emt 00:00:10]} 14. fxe5 {[%clk 01:03:42]} {[%emt 00:03:12]} Bxe5
{[%clk 01:22:49]} {[%emt 00:00:41]} 15. f4 {[%clk 01:03:36]} {[%emt 00:00:36]}
Bxc3+ {[%clk 01:22:03]} {[%emt 00:01:15]} 16. Qxc3 {[%clk 01:03:40]} {[%emt
00:00:26]} Qe7 {[%clk 01:22:15]} {[%emt 00:00:18]} 17. O-O-O {[%clk 01:03:25]}
{[%emt 00:00:45]} Bf5 {[%clk 01:21:30]} {[%emt 00:01:15]} 18. Rhe1 {[%clk
01:02:04]} {[%emt 00:01:51]} Ne4 {[%clk 01:19:46]} {[%emt 00:02:14]} 19. Bxe4
{[%clk 01:01:17]} {[%emt 00:01:17]} Bxe4 {[%clk 01:19:56]} {[%emt 00:00:19]} 20.
Rxd6 {[%clk 01:01:06]} {[%emt 00:00:41]} Rf7 {[%clk 01:16:06]} {[%emt
00:04:21]} 21. Red1 {[%clk 01:00:41]} {[%emt 00:00:55]} Re8 {[%clk 01:14:10]}
{[%emt 00:02:25]} 22. Qd4 {[%clk 00:59:03]} {[%emt 00:02:09]} Bf5 {[%clk
01:13:07]} {[%emt 00:01:33]} 23. Rg1 {[%clk 00:54:25]} {[%emt 00:05:08]} Bg6
{[%clk 01:10:52]} {[%emt 00:02:44]} 24. Kd2 {[%clk 00:40:00]} {[%emt 00:14:55]}
Qe4 {[%clk 01:07:14]} {[%emt 00:04:08]} 25. Qxe4 {[%clk 00:38:48]} {[%emt
00:01:42]} Bxe4 {[%clk 01:07:33]} {[%emt 00:00:12]} 26. Be5 {[%clk 00:39:07]}
{[%emt 00:00:11]} g6 {[%clk 01:07:32]} {[%emt 00:00:31]} 27. h4 {[%clk
00:38:59]} {[%emt 00:00:38]} h5 {[%clk 01:06:30]} {[%emt 00:01:32]} 28. Kc3
{[%clk 00:38:27]} {[%emt 00:01:03]} Kh7 {[%clk 01:04:41]} {[%emt 00:02:18]} 29.
Rgd1 {[%clk 00:37:19]} {[%emt 00:01:38]} Bf5 {[%clk 01:04:46]} {[%emt
00:00:25]} 30. Rd8 {[%clk 00:37:13]} {[%emt 00:00:36]} Rff8 {[%clk 01:05:01]}
{[%emt 00:00:14]} 31. Rxe8 {[%clk 00:31:35]} {[%emt 00:06:09]} Rxe8 {[%clk
01:05:18]} {[%emt 00:00:13]} 32. Rd6 {[%clk 00:32:02]} {[%emt 00:00:03]} Kg8
{[%clk 01:05:06]} {[%emt 00:00:41]} 33. Kd4 {[%clk 00:32:01]} {[%emt 00:00:31]}
Re6 {[%clk 00:59:59]} {[%emt 00:05:38]} 34. Rd7 {[%clk 00:30:40]} {[%emt
00:01:51]} c5+ {[%clk 01:00:20]} {[%emt 00:00:08]} 35. Kc3 {[%clk 00:29:48]}
{[%emt 00:01:22]} Be4 {[%clk 01:00:22]} {[%emt 00:00:29]} 36. b4 {[%clk
00:25:29]} {[%emt 00:04:50]} Ra6 {[%clk 00:59:06]} {[%emt 00:01:45]} 37. bxc5
{[%clk 00:25:47]} {[%emt 00:00:12]} Ra3+ {[%clk 00:59:17]} {[%emt 00:00:19]} 38.
Kd4 {[%clk 00:17:55]} {[%emt 00:08:22]} Rd3+ {[%clk 00:59:38]} {[%emt
00:00:09]} 39. Kxe4 {[%clk 00:18:23]} {[%emt 00:00:02]} Rxd7 {[%clk 00:59:57]}
{[%emt 00:00:11]} 40. Bd6 {[%clk 00:18:51]} {[%emt 00:00:01]} Kf7 {[%clk
00:57:57]} {[%emt 00:02:32]} 41. Kd5 {[%clk 00:19:16]} {[%emt 00:00:04]} Rd8
{[%clk 00:56:46]} {[%emt 00:01:41]} 42. e4 {[%clk 00:19:28]} {[%emt 00:00:19]}
Re8 {[%clk 00:56:21]} {[%emt 00:00:54]} 43. e5 {[%clk 00:18:58]} {[%emt
00:01:00]} a6 {[%clk 00:56:23]} {[%emt 00:00:28]} 44. a4 {[%clk 00:18:56]}
{[%emt 00:00:32]} Re6 {[%clk 00:54:29]} {[%emt 00:02:24]} 45. c6 {[%clk
00:18:43]} {[%emt 00:00:43]} bxc6+ {[%clk 00:53:56]} {[%emt 00:01:03]} 46. Kxc6
{[%clk 00:19:11]} {[%emt 00:00:02]} Ke8 {[%clk 00:54:17]} {[%emt 00:00:09]} 47.
Kc7 {[%clk 00:19:10]} {[%emt 00:00:31]} g5 {[%clk 00:54:11]} {[%emt 00:00:36]}
48. fxg5 {[%clk 00:14:41]} {[%emt 00:04:58]} Rg6 {[%clk 00:54:29]} {[%emt
00:00:12]} 49. c5 {[%clk 00:14:30]} {[%emt 00:00:42]} Rg7+ {[%clk 00:54:37]}
{[%emt 00:00:21]} 50. Kb6 {[%clk 00:14:47]} {[%emt 00:00:13]} a5 {[%clk
00:54:14]} {[%emt 00:00:53]} 51. c6 {[%clk 00:15:01]} {[%emt 00:00:15]} Kd8
{[%clk 00:54:27]} {[%emt 00:00:17]} 52. e6 {[%clk 00:10:58]} {[%emt 00:04:33]}
Rg8 {[%clk 00:54:08]} {[%emt 00:00:49]} 53. Kxa5 {[%clk 00:09:25]} {[%emt
00:02:03]} Re8 {[%clk 00:54:18]} {[%emt 00:00:20]} 54. e7+ {[%clk 00:09:30]}
{[%emt 00:00:25]} Kc8 {[%clk 00:54:28]} {[%emt 00:00:20]} 55. Kb6 {[%clk
00:09:24]} {[%emt 00:00:35]} 1-0

[Event "ONJK U25"]
[Site "Enschede, Netherlands"]
[Date "2022.08.11"]
[Round "5.4"]
[White "Gesthuizen, Ward"]
[Black "Van Iersel, Yorn"]
[Result "1/2-1/2"]
[TimeControl "90min + 30sec/move"]
[WhiteElo "1600"]
[BlackElo "1419"]

1. d4 {[%clk 01:30:56]} {[%emt 00:00:03]} d5 {[%clk 01:30:54]} {[%emt
00:00:06]} 2. c4 {[%clk 01:31:21]} {[%emt 00:00:06]} c6 {[%clk 01:31:15]}
{[%emt 00:00:09]} 3. Nc3 {[%clk 01:31:39]} {[%emt 00:00:12]} Nf6 {[%clk
01:31:35]} {[%emt 00:00:10]} 4. Bg5 {[%clk 01:31:49]} {[%emt 00:00:19]} dxc4
{[%clk 01:31:39]} {[%emt 00:00:26]} 5. a4 {[%clk 01:28:58]} {[%emt 00:03:22]}
Qa5 {[%clk 01:31:27]} {[%emt 00:00:42]} 6. Bxf6 {[%clk 01:24:00]} {[%emt
00:05:27]} exf6 {[%clk 01:31:19]} {[%emt 00:00:38]} 7. e3 {[%emt 00:01:46]} Bb4
{[%clk 01:30:28]} {[%emt 00:00:47]} 8. Qc1 {[%clk 01:20:50]} {[%emt 00:02:57]}
Be6 {[%clk 01:20:22]} {[%emt 00:10:37]} 9. Nf3 {[%clk 01:17:58]} {[%emt
00:03:22]} O-O {[%clk 01:13:21]} {[%emt 00:07:31]} 10. Be2 {[%clk 01:15:06]}
{[%emt 00:03:21]} c5 {[%clk 01:11:21]} {[%emt 00:02:30]} 11. O-O {[%clk
01:09:52]} {[%emt 00:05:44]} cxd4 {[%clk 01:10:39]} {[%emt 00:01:12]} 12. Nxd4
{[%clk 01:09:20]} {[%emt 00:01:02]} Bxc3 {[%clk 01:08:30]} {[%emt 00:02:39]} 13.
bxc3 {[%clk 01:05:02]} {[%emt 00:04:48]} Qc5 {[%clk 01:07:11]} {[%emt
00:01:49]} 14. Qb2 {[%clk 01:00:34]} {[%emt 00:04:58]} b6 {[%clk 01:05:31]}
{[%emt 00:02:10]} 15. a5 {[%clk 00:53:19]} {[%emt 00:07:44]} Nd7 {[%clk
01:05:00]} {[%emt 00:01:01]} 16. Rfd1 {[%clk 00:48:48]} {[%emt 00:05:01]} Rfd8
{[%clk 00:59:00]} {[%emt 00:06:31]} 17. Nxe6 {[%clk 00:45:41]} {[%emt
00:03:36]} fxe6 {[%clk 00:59:15]} {[%emt 00:00:15]} 18. Rxd7 {[%clk 00:34:37]}
{[%emt 00:11:34]} Rxd7 {[%clk 00:57:31]} {[%emt 00:02:15]} 19. axb6 {[%clk
00:34:41]} {[%emt 00:00:25]} Rb8 {[%clk 00:54:47]} {[%emt 00:03:15]} 20. bxa7
{[%clk 00:33:18]} {[%emt 00:01:53]} Qxa7 {[%clk 00:55:01]} {[%emt 00:00:15]} 21.
Rxa7 {[%clk 00:32:03]} {[%emt 00:01:45]} Rxb2 {[%clk 00:55:24]} {[%emt
00:00:07]} 22. Rxd7 {[%clk 00:31:55]} {[%emt 00:00:39]} Rxe2 {[%clk 00:55:47]}
{[%emt 00:00:07]} 23. Kf1 {[%clk 00:31:27]} {[%emt 00:00:57]} Rc2 {[%clk
00:56:09]} {[%emt 00:00:08]} 24. h4 {[%clk 00:30:39]} {[%emt 00:01:18]} h5
{[%clk 00:55:47]} {[%emt 00:00:52]} 25. g3 {[%clk 00:29:24]} {[%emt 00:01:45]}
Rxc3 {[%clk 00:55:40]} {[%emt 00:00:38]} 26. Rc7 {[%clk 00:29:33]} {[%emt
00:00:21]} e5 {[%clk 00:54:48]} {[%emt 00:01:21]} 27. Ke1 {[%clk 00:27:48]}
{[%emt 00:02:15]} Rc2 {[%clk 00:54:33]} {[%emt 00:00:46]} 28. Rd7 {[%clk
00:27:20]} {[%emt 00:00:58]} c3 {[%clk 00:54:25]} {[%emt 00:00:38]} 29. Rc7
{[%clk 00:26:18]} {[%emt 00:01:31]} Kh7 {[%clk 00:51:31]} {[%emt 00:03:24]} 30.
e4 {[%clk 00:20:27]} {[%emt 00:06:22]} Kh6 {[%clk 00:51:02]} {[%emt 00:00:58]}
31. Rc6 {[%clk 00:19:56]} {[%emt 00:01:01]} Kg6 {[%clk 00:50:53]} {[%emt
00:00:39]} 32. Rc7 {[%clk 00:19:31]} {[%emt 00:00:55]} Kh6 {[%clk 00:51:08]}
{[%emt 00:00:15]} 1/2-1/2